fUSD/lending_fUSD_20240125
["ID","MTS","AMOUNT","RATE_DAILY","PERIOD"]
[312718860,1706188853333,-500.0,0.00050136,31]
[312718861,1706188853362,-500.0,0.00050136,31]
[312718862,1706188853390,-1305.94,0.00050136,31]
[312718863,1706188853417,-945.14,0.00050136,31]
[312718864,1706188853452,-668.31,0.00050136,31]
[312718865,1706188853480,-500.0,0.00050136,31]
[312718866,1706188853509,-538.49,0.00050136,31]
[312718867,1706188853537,-919.42,0.00050136,31]
[312718868,1706188853565,-1198.03,0.00050136,31]
[312718869,1706188853593,-500.0,0.00050136,31]
[312718870,1706188853621,-621.93,0.00050136,31]
[312718871,1706188853648,-791.89,0.00050136,31]
[312718872,1706188853675,-500.0,0.00050136,31]
[312718873,1706188853705,-500.0,0.00050136,31]
[312718874,1706188853733,-1243.05,0.00050136,31]
[312718875,1706188853760,-500.0,0.00050136,31]
[312718876,1706188853788,-500.0,0.00050136,31]
[312718877,1706188853816,-500.0,0.00050136,31]
[312718878,1706188853843,-558.35,0.00050136,31]
[312718879,1706188853870,-500.0,0.00050136,31]
[312718880,1706188853898,-500.0,0.00050136,31]
[312718881,1706188853926,-500.0,0.00050136,31]
[312718882,1706188853954,-517.3,0.00050136,31]
[312718883,1706188853983,-689.62,0.00050136,31]
[312718884,1706188854010,-500.0,0.00050136,31]
[312718885,1706188854039,-504.11,0.00050136,31]
[312718886,1706188854070,-720.97,0.00050136,31]
[312718887,1706188854100,-2344.2,0.00050136,31]
[312718888,1706188854129,-500.0,0.00050136,31]
[312718889,1706188854347,-691.44,0.00050136,31]
[312718890,1706188854377,-1094.16,0.00050136,31]
[312718891,1706188854406,-550.56,0.00050136,31]
[312718892,1706188854434,-500.0,0.00050136,31]
[312718893,1706188854464,-900.04,0.00050136,31]
[312718894,1706188854493,-518.45,0.00050136,31]
[312718895,1706188854521,-518.79124008,0.00050136,31]
[312718896,1706188854551,-900.8,0.00050136,31]
[312718897,1706188854578,-500.0,0.00050136,31]
[312718898,1706188854606,-500.76,0.00050136,31]
[312718899,1706188854635,-521.94,0.00050136,31]
[312718900,1706188854663,-500.0,0.00050136,31]
[312718901,1706188854690,-500.0,0.00050136,31]
[312718902,1706188854718,-890.01,0.00050136,31]
[312718903,1706188854746,-634.63,0.00050136,31]
[312718904,1706188854774,-500.0,0.00050136,31]
[312718905,1706188854802,-500.0,0.00050136,31]
[312718906,1706188854830,-500.0,0.00050136,31]
[312718907,1706188854857,-500.0,0.00050136,31]
[312718908,1706188854885,-1000.0,0.00050136,30]
[312718909,1706188854913,-4298.96,0.00050136,31]
[312718910,1706188854940,-500.0,0.00050136,31]
[312718911,1706188854968,-500.0,0.00050136,31]
[312718912,1706188854995,-500.0,0.00050136,31]
[312718913,1706188855023,-500.0,0.00050136,31]
[312718914,1706188855052,-500.0,0.00050136,31]
[312718915,1706188855080,-500.0,0.00050136,31]
[312718916,1706188855110,-834.57,0.00050136,31]
[312718917,1706188855138,-500.0,0.00050136,31]
[312718918,1706188855167,-500.0,0.00050136,31]
[312718919,1706188855196,-500.0,0.00050136,31]
[312718920,1706188855226,-2659.22,0.00050136,31]
[312718921,1706188855254,-500.0,0.00050136,31]
[312718922,1706188855282,-500.0,0.00050136,31]
[312718923,1706188855310,-706.5,0.00050136,31]
[312718924,1706188855338,-502.47,0.00050136,31]
[312718925,1706188855366,-500.0,0.00050136,31]
[312718926,1706188855399,-511.82,0.00050136,31]
[312718927,1706188855427,-500.0,0.00050136,31]
[312718928,1706188855457,-735.0,0.00050136,31]
[312718929,1706188855487,-500.0,0.00050136,31]
[312718930,1706188855516,-500.0,0.00050136,31]
[312718931,1706188855546,-650.71,0.00050136,31]
[312718932,1706188855576,-500.0,0.00050136,31]
[312718933,1706188855604,-515.77,0.00050136,31]
[312718934,1706188855634,-280.66881225,0.000502,30]
[312718935,1706188855662,-2069.76164067,0.0005035,30]
[312718936,1706188855691,-150.0,0.0005035,30]
[312718937,1706188855720,-500.0,0.0005041,31]
[312718938,1706188855749,-1224.41,0.0005041,31]
[312718939,1706188855777,-500.0,0.0005041,31]
[312718940,1706188855807,-551.45,0.0005041,31]
[312718941,1706188855836,-500.0,0.0005041,31]
[312718942,1706188855865,-500.0,0.0005041,31]
[312718943,1706188855894,-500.0,0.0005041,31]
[312718944,1706188855922,-500.0,0.0005041,31]
[312718945,1706188855950,-1626.34,0.0005041,31]
[312718946,1706188855979,-581.20641296,0.0005041,31]
[312718947,1706188856008,-500.0,0.0005041,31]
[312718948,1706188856037,-500.0,0.0005041,31]
[312718949,1706188856068,-2576.58,0.0005041,31]
[312718950,1706188856098,-500.0,0.0005041,31]
[312718951,1706188856127,-608.34719465,0.0005041,31]
[312718952,1706188856156,-500.0,0.0005041,31]
[312718953,1706188856185,-500.0,0.0005041,31]
[312718954,1706188856215,-500.0,0.0005041,31]
[312718955,1706188856245,-500.0,0.0005041,31]
[312718956,1706188856275,-500.0,0.0005041,31]
[312718957,1706188856309,-500.0,0.0005041,31]
[312718958,1706188856338,-500.0,0.0005041,31]
[312718959,1706188856367,-500.0,0.0005041,31]
[312718960,1706188856397,-500.0,0.0005041,31]
[312718961,1706188856428,-500.0,0.0005041,31]
[312718962,1706188856457,-500.0,0.0005041,31]
[312718963,1706188856666,-687.4,0.0005041,31]
[312718964,1706188856694,-500.0,0.0005041,31]
[312718965,1706188856722,-500.0,0.0005041,31]
[312718966,1706188856753,-500.0,0.0005041,31]
[312718967,1706188856782,-500.0,0.0005041,31]
[312718968,1706188856811,-500.0,0.0005041,31]
[312718969,1706188856839,-547.56877387,0.0005041,31]
[312718970,1706188856866,-624.67,0.0005041,31]
[312718971,1706188856893,-500.0,0.0005041,31]
[312718972,1706188856920,-500.0,0.0005041,31]
[312718973,1706188856949,-500.0,0.0005041,31]
[312718974,1706188856977,-500.0,0.0005041,31]
[312718975,1706188857005,-500.0,0.0005041,31]
[312718976,1706188857032,-500.0,0.0005041,31]
[312718977,1706188857062,-500.0,0.0005041,31]
[312718978,1706188857090,-500.0,0.0005041,31]
[312718979,1706188857119,-500.0,0.0005041,31]
[312718980,1706188857149,-443.44016998,0.0005041,31]
[312718981,1706188857178,-500.0,0.0005041,31]
[312718982,1706188857206,-500.0,0.0005041,31]
[312718983,1706188857235,-500.0,0.0005041,31]
[312718984,1706188857262,-498.03387832,0.0005041,31]
[312718985,1706188857290,-543.47,0.0005041,31]
[312718986,1706188857320,-500.0,0.0005041,31]
[312718987,1706188857346,-500.0,0.0005041,31]
[312718988,1706188857373,-500.0,0.0005041,31]
[312718989,1706188857400,-511.97,0.0005041,31]
[312718990,1706188857432,-500.0,0.0005041,31]
[312718991,1706188857467,-500.0,0.0005041,31]
[312718992,1706188857495,-500.0,0.0005041,31]
[312718993,1706188857523,-500.0,0.0005041,31]
[312718994,1706188857551,-500.0,0.0005041,31]
[312718995,1706188857579,-500.0,0.0005041,31]
[312718996,1706188857606,-500.0,0.0005041,31]
[312718997,1706188857633,-500.0,0.0005041,31]
[312718998,1706188857682,-500.0,0.0005041,31]
[312718999,1706188857735,-500.0,0.0005041,31]
[312719000,1706188857782,-500.0,0.0005041,31]
[312719001,1706188857830,-500.0,0.0005041,31]
[312719002,1706188857881,-500.0,0.0005041,31]
[312719003,1706188857922,-500.0,0.0005041,31]
[312719004,1706188857964,-500.0,0.0005041,31]
[312719005,1706188858006,-500.0,0.0005041,31]
[312719006,1706188858050,-500.0,0.0005041,31]
[312719007,1706188858093,-500.0,0.0005041,31]
[312719008,1706188858134,-520.94,0.0005041,31]
[312719009,1706188858176,-674.26,0.0005041,31]
[312719010,1706188858217,-500.0,0.0005041,31]
[312719011,1706188858257,-500.0,0.0005041,31]
[312719012,1706188858304,-507.58,0.0005041,31]
[312719013,1706188858348,-500.0,0.0005041,31]
[312719014,1706188858391,-500.0,0.0005041,31]
[312719015,1706188858434,-500.0,0.0005041,31]
[312719016,1706188858481,-500.0,0.0005041,31]
[312719017,1706188858522,-500.0,0.0005041,31]
[312719018,1706188858563,-500.0,0.0005041,31]
[312719019,1706188858606,-500.0,0.0005041,31]
[312719020,1706188858652,-221.80772882,0.0005041,31]
[312719021,1706188858695,-500.0,0.0005041,31]
[312719022,1706188858737,-500.0,0.0005041,31]
[312719023,1706188858815,-426.34703771,0.0005041,31]
[312719024,1706188858859,-500.0,0.0005041,31]
[312719025,1706188858901,-500.0,0.0005041,31]
[312719026,1706188858943,-500.0,0.0005041,31]
[312719027,1706188858984,-500.0,0.0005041,31]
[312719028,1706188859025,-500.0,0.0005041,31]
[312719029,1706188859067,-500.0,0.0005041,31]
[312719030,1706188859108,-500.0,0.0005041,31]
[312719031,1706188859150,-500.0,0.0005041,31]
[312719032,1706188859197,-500.0,0.0005041,31]
[312719033,1706188859241,-500.0,0.0005041,31]
[312719034,1706188859484,-500.0,0.0005041,31]
[312719035,1706188859513,-500.0,0.0005041,31]
[312719036,1706188859541,-500.0,0.0005041,31]
[312719037,1706188859569,-500.0,0.0005041,31]
[312719038,1706188859597,-500.0,0.0005041,31]
[312719039,1706188859626,-500.0,0.0005041,31]
[312719040,1706188859653,-500.0,0.0005041,31]
[312719041,1706188859681,-500.0,0.0005041,31]
[312719042,1706188859709,-622.82,0.0005041,31]
[312719043,1706188859736,-848.34,0.0005041,31]
[312719044,1706188859764,-500.0,0.0005041,31]
[312719045,1706188859791,-500.0,0.0005041,31]
[312719046,1706188859821,-500.0,0.0005041,31]
[312719047,1706188859849,-500.0,0.0005041,31]
[312719048,1706188859877,-500.0,0.0005041,31]
[312719049,1706188859908,-500.0,0.0005041,31]
[312719050,1706188859935,-692.14,0.0005041,31]
[312719051,1706188859962,-500.0,0.0005041,31]
[312719052,1706188859989,-500.0,0.0005041,31]
[312719053,1706188860015,-500.0,0.0005041,31]
[312719054,1706188860045,-500.0,0.0005041,31]
[312719055,1706188860076,-531.51,0.0005041,31]
[312719056,1706188860214,-723.91,0.0005041,31]
[312719057,1706188860244,-500.0,0.0005041,31]
[312719058,1706188860273,-500.0,0.0005041,31]
[312719059,1706188860303,-500.0,0.0005041,31]
[312719060,1706188860333,-500.0,0.0005041,31]
[312719061,1706188860361,-500.0,0.0005041,31]
[312719062,1706188860389,-500.0,0.0005041,31]
[312719063,1706188860417,-500.0,0.0005041,31]
[312719064,1706188860445,-500.0,0.0005041,31]
[312719065,1706188860472,-500.0,0.0005041,31]
[312719066,1706188860501,-500.0,0.0005041,31]
[312719067,1706188860530,-500.0,0.0005041,31]
[312719068,1706188860558,-500.0,0.0005041,31]
[312719069,1706188860585,-500.0,0.0005041,31]
[312719070,1706188860613,-500.0,0.0005041,31]
[312719071,1706188860640,-500.0,0.0005041,31]
[312719072,1706188860667,-500.0,0.0005041,31]
[312719073,1706188860694,-500.0,0.0005041,31]
[312719074,1706188860724,-500.0,0.0005041,31]
[312719075,1706188860753,-518.42,0.0005041,31]
[312719076,1706188860783,-500.0,0.0005041,31]
[312719077,1706188860812,-556.54,0.0005041,31]
[312719078,1706188860843,-500.0,0.0005041,31]
[312719079,1706188860877,-500.0,0.0005041,31]
[312719080,1706188860915,-500.0,0.0005041,31]
[312719081,1706188860951,-500.0,0.0005041,31]
[312719082,1706188860983,-250.0,0.0005041,31]
[312719083,1706188861016,-500.0,0.0005041,31]
[312719084,1706188861048,-500.0,0.0005041,31]
[312719085,1706188861087,-568.52,0.0005041,31]
[312719086,1706188861119,-653.44,0.0005041,31]
[312719087,1706188861149,-500.0,0.0005041,31]
[312719088,1706188861181,-500.0,0.0005041,31]
[312719089,1706188861211,-500.0,0.0005041,31]
[312719090,1706188861241,-500.0,0.0005041,31]
[312719091,1706188861270,-500.0,0.0005041,31]
[312719092,1706188861299,-500.0,0.0005041,31]
[312719093,1706188861339,-500.0,0.0005041,31]
[312719094,1706188861371,-384.42325457,0.0005041,31]
[312719095,1706188861400,-500.0,0.0005041,31]
[312719096,1706188861431,-500.0,0.0005041,31]
[312719097,1706188861463,-628.96,0.0005041,31]
[312719098,1706188861492,-500.0,0.0005041,31]
[312719099,1706188861523,-523.72,0.0005041,31]
[312719100,1706188861557,-500.0,0.0005041,31]
[312719101,1706188861587,-500.0,0.0005041,31]
[312719102,1706188861615,-899.54,0.0005041,31]
[312719103,1706188861642,-500.0,0.0005041,31]
[312719104,1706188861669,-500.0,0.0005041,31]
[312719105,1706188861697,-500.0,0.0005041,31]
[312719106,1706188861724,-500.0,0.0005041,31]
[312719107,1706188861751,-500.0,0.0005041,31]
[312719108,1706188861780,-500.0,0.0005041,31]
[312719109,1706188861810,-500.0,0.0005041,31]
[312719110,1706188861838,-500.0,0.0005041,31]
[312719111,1706188861866,-500.0,0.0005041,31]
[312719112,1706188861894,-500.0,0.0005041,31]
[312719113,1706188861922,-500.0,0.0005041,31]
[312719114,1706188861950,-500.0,0.0005041,31]
[312719115,1706188861977,-500.0,0.0005041,31]
[312719116,1706188862154,-500.0,0.0005041,31]
[312719117,1706188862183,-528.11,0.0005041,31]
[312719118,1706188862211,-500.0,0.0005041,31]
[312719119,1706188862239,-226.18218484,0.0005041,31]
[312719120,1706188862267,-500.0,0.0005041,31]
[312719121,1706188862295,-1037.12,0.0005041,31]
[312719122,1706188862322,-500.0,0.0005041,31]
[312719123,1706188862350,-500.0,0.0005041,31]
[312719124,1706188862377,-500.0,0.0005041,31]
[312719125,1706188862404,-500.0,0.0005041,30]
[312719126,1706188862431,-500.0,0.0005041,31]
[312719127,1706188862460,-500.0,0.0005041,31]
[312719128,1706188862487,-500.0,0.0005041,31]
[312719129,1706188862515,-500.0,0.0005041,31]
[312719130,1706188862544,-500.0,0.0005041,31]
[312719131,1706188862573,-500.0,0.0005041,31]
[312719132,1706188862599,-500.0,0.0005041,31]
[312719133,1706188862626,-500.0,0.0005041,31]
[312719134,1706188862655,-500.0,0.0005041,31]
[312719135,1706188862684,-500.0,0.0005041,31]
[312719136,1706188862711,-500.0,0.0005041,31]
[312719137,1706188862740,-500.0,0.0005041,31]
[312719138,1706188862768,-500.0,0.0005041,31]
[312719139,1706188862796,-500.0,0.0005041,31]
[312719140,1706188862824,-500.0,0.0005041,31]
[312719141,1706188862851,-500.0,0.0005041,31]
[312719142,1706188862878,-500.0,0.0005041,31]
[312719143,1706188862905,-500.0,0.0005041,31]
[312719144,1706188862933,-500.0,0.0005041,31]
[312719145,1706188862961,-500.0,0.0005041,31]
[312719146,1706188862988,-500.0,0.0005041,31]
[312719147,1706188863017,-500.0,0.0005041,31]
[312719148,1706188863046,-500.0,0.0005041,31]
[312719149,1706188863078,-500.0,0.0005041,31]
[312719150,1706188863110,-500.0,0.0005041,31]
[312719151,1706188863139,-500.0,0.0005041,31]
[312719152,1706188863168,-500.0,0.0005041,31]
[312719153,1706188863195,-500.0,0.0005041,31]
[312719154,1706188863225,-500.0,0.0005041,31]
[312719155,1706188863252,-500.0,0.0005041,31]
[312719156,1706188863280,-500.0,0.0005041,31]
[312719157,1706188863308,-533.46,0.0005041,31]
[312719158,1706188863336,-501.9,0.0005041,31]
[312719159,1706188863363,-1106.47,0.0005041,31]
[312719160,1706188863390,-500.0,0.0005041,31]
[312719161,1706188863417,-500.0,0.0005041,31]
[312719162,1706188863446,-500.0,0.0005041,31]
[312719163,1706188863473,-500.0,0.0005041,31]
[312719164,1706188863503,-500.0,0.0005041,31]
[312719165,1706188863531,-500.0,0.0005041,31]
[312719166,1706188863561,-500.0,0.0005041,31]
[312719167,1706188863589,-500.0,0.0005041,31]
[312719168,1706188863615,-3932.94,0.0005041,30]
[312719169,1706188863642,-500.0,0.0005041,31]
[312719170,1706188863669,-500.0,0.0005041,31]
[312719171,1706188863697,-553.31,0.0005041,31]
[312719172,1706188863726,-500.0,0.0005041,31]
[312719173,1706188863753,-500.0,0.0005041,31]
[312719174,1706188863780,-500.0,0.0005041,31]
[312719175,1706188863810,-1880.79,0.0005041,31]
[312719176,1706188863838,-582.46,0.0005041,31]
[312719177,1706188863865,-500.0,0.0005041,31]
[312719178,1706188863893,-500.0,0.0005041,31]
[312719179,1706188863922,-239.05746137,0.0005041,31]
[312719180,1706188863949,-500.0,0.0005041,31]
[312719181,1706188863977,-500.0,0.0005041,31]
[312719182,1706188864006,-3956.45,0.0005041,31]
[312719183,1706188864034,-500.0,0.0005041,31]
[312719184,1706188864062,-500.0,0.0005041,31]
[312719185,1706188864092,-500.0,0.0005041,31]
[312719186,1706188864120,-500.0,0.0005041,31]
[312719187,1706188864149,-500.0,0.0005041,31]
[312719188,1706188864179,-500.0,0.0005041,31]
[312719189,1706188864207,-500.0,0.0005041,31]
[312719190,1706188864235,-537.05533248,0.0005041,31]
[312719191,1706188864265,-500.0,0.0005041,31]
[312719192,1706188864294,-500.0,0.0005041,31]
[312719193,1706188864323,-500.0,0.0005041,31]
[312719194,1706188864352,-500.0,0.0005041,31]
[312719195,1706188864381,-678.41,0.0005041,31]
[312719196,1706188864410,-500.0,0.0005041,31]
[312719197,1706188864440,-500.0,0.0005041,31]
[312719198,1706188864471,-500.0,0.0005041,31]
[312719199,1706188864504,-500.0,0.0005041,31]
[312719200,1706188864535,-773.2040866,0.0005041,30]
[312719201,1706188864563,-500.0,0.0005041,31]
[312719202,1706188864596,-500.0,0.0005041,31]
[312719203,1706188864626,-500.0,0.0005041,31]
[312719204,1706188864655,-500.0,0.0005041,31]
[312719205,1706188864683,-500.0,0.0005041,31]
[312719206,1706188864713,-549.93,0.0005041,31]
[312719207,1706188864892,-500.0,0.0005041,31]
[312719208,1706188864920,-500.0,0.0005041,31]
[312719209,1706188864949,-500.0,0.0005041,31]
[312719210,1706188864981,-679.41,0.0005041,31]
[312719211,1706188865011,-508.28,0.0005041,31]
[312719212,1706188865043,-500.0,0.0005041,31]
[312719213,1706188865079,-509.93,0.0005041,31]
[312719214,1706188865110,-500.0,0.0005041,31]
[312719215,1706188865143,-1829.46,0.0005041,31]
[312719216,1706188865175,-500.0,0.0005041,31]
[312719217,1706188865211,-500.0,0.0005041,31]
[312719218,1706188865244,-500.0,0.0005041,31]
[312719219,1706188865279,-531.3,0.0005041,31]
[312719220,1706188865312,-192.2,0.0005041,31]
[312719221,1706188865345,-500.0,0.0005041,31]
[312719222,1706188865376,-500.0,0.0005041,31]
[312719223,1706188865406,-500.0,0.0005041,31]
[312719224,1706188865439,-500.0,0.0005041,31]
[312719225,1706188865471,-1383.36,0.0005041,31]
[312719226,1706188865502,-457.10767741,0.0005041,31]
[312719227,1706188865533,-500.0,0.0005041,31]
[312719228,1706188865564,-500.0,0.0005041,31]
[312719229,1706188865595,-1090.07,0.0005041,31]
[312719230,1706188865625,-1155.38,0.0005041,31]
[312719231,1706188865656,-500.0,0.0005041,31]
[312719232,1706188865687,-521.96,0.0005041,31]
[312719233,1706188865718,-684.55,0.0005041,31]
[312719234,1706188865750,-500.0,0.0005041,31]
[312719235,1706188865781,-500.0,0.0005041,31]
[312719236,1706188865813,-500.0,0.0005041,31]
[312719237,1706188865844,-500.0,0.0005041,31]
[312719238,1706188865876,-500.0,0.0005041,31]
[312719239,1706188865906,-623.76653082,0.0005041,31]
[312719240,1706188865935,-500.0,0.0005041,31]
[312719241,1706188865966,-557.35,0.0005041,31]
[312719242,1706188865996,-500.0,0.0005041,31]
[312719243,1706188866028,-500.0,0.0005041,31]
[312719244,1706188866059,-936.58,0.0005041,31]
[312719245,1706188866091,-500.0,0.0005041,31]
[312719246,1706188866123,-1018.72,0.0005041,31]
[312719247,1706188866157,-500.0,0.0005041,31]
[312719248,1706188866191,-500.0,0.0005041,31]
[312719249,1706188866227,-558.76,0.0005041,31]
[312719250,1706188866262,-500.0,0.0005041,31]
[312719251,1706188866297,-753.41,0.0005041,31]
[312719252,1706188866330,-500.0,0.0005041,31]
[312719253,1706188866363,-500.0,0.0005041,31]
[312719254,1706188866396,-500.0,0.0005041,31]
[312719255,1706188866428,-500.0,0.0005041,31]
[312719256,1706188866463,-831.65,0.0005041,31]
[312719257,1706188866496,-6140.75,0.0005041,31]
[312719258,1706188866526,-500.0,0.0005041,31]
[312719259,1706188866558,-761.84,0.0005041,31]
[312719260,1706188866590,-675.65,0.0005041,31]
[312719261,1706188866622,-500.0,0.0005041,31]
[312719262,1706188866653,-288.92567281,0.0005041,31]
[312719263,1706188866684,-711.97,0.0005041,31]
[312719264,1706188866714,-507.48,0.0005041,31]
[312719265,1706188866743,-500.0,0.0005041,31]
[312719266,1706188866774,-500.0,0.0005041,31]
[312719267,1706188866803,-500.0,0.0005041,31]
[312719268,1706188866837,-500.0,0.0005041,31]
[312719269,1706188866867,-704.71,0.0005041,31]
[312719270,1706188866898,-500.0,0.0005041,31]
[312719271,1706188866928,-717.59,0.0005041,31]
[312719272,1706188866958,-500.0,0.0005041,31]
[312719273,1706188866991,-1413.36,0.0005041,31]
[312719274,1706188867032,-500.0,0.0005041,31]
[312719275,1706188867065,-1123.79,0.0005041,31]
[312719276,1706188867096,-500.0,0.0005041,31]
[312719277,1706188867127,-500.0,0.0005041,31]
[312719278,1706188867161,-500.0,0.0005041,31]
[312719279,1706188867193,-789.32,0.0005041,31]
[312719280,1706188867224,-500.0,0.0005041,31]
[312719281,1706188867254,-2527.99,0.0005041,31]
[312719282,1706188867285,-500.0,0.0005041,31]
[312719283,1706188867316,-3360.31,0.0005041,31]
[312719284,1706188867346,-500.0,0.0005041,31]
[312719285,1706188867377,-2252.57,0.0005041,31]
[312719286,1706188867411,-500.0,0.0005041,31]
[312719287,1706188867445,-500.0,0.0005041,31]
[312719288,1706188867483,-4785.39,0.0005041,31]
[312719289,1706188867512,-757.11,0.0005041,31]
[312719290,1706188867541,-681.67,0.0005041,31]
[312719291,1706188867570,-500.0,0.0005041,31]
[312719292,1706188867600,-500.0,0.0005041,31]
[312719293,1706188867631,-500.0,0.0005041,31]
[312719294,1706188867814,-578.13,0.0005041,31]
[312719295,1706188867847,-500.0,0.0005041,31]
[312719296,1706188867879,-500.0,0.0005041,31]
[312719297,1706188867910,-1195.74,0.0005041,31]
[312719298,1706188867942,-646.08,0.0005041,31]
[312719299,1706188867971,-500.0,0.0005041,31]
[312719300,1706188868000,-500.0,0.0005041,31]
[312719301,1706188868030,-500.0,0.0005041,31]
[312719302,1706188868061,-500.0,0.0005041,31]
[312719303,1706188868092,-543.76,0.0005041,31]
[312719304,1706188868121,-668.94,0.0005041,31]
[312719305,1706188868151,-500.0,0.0005041,31]
[312719306,1706188868182,-500.0,0.0005041,31]
[312719307,1706188868213,-500.0,0.0005041,31]
[312719308,1706188868244,-500.0,0.0005041,31]
[312719309,1706188868275,-500.0,0.0005041,31]
[312719310,1706188868306,-500.0,0.0005041,31]
[312719311,1706188868340,-624.44,0.0005041,31]
[312719312,1706188868369,-500.0,0.0005041,31]
[312719313,1706188868399,-500.0,0.0005041,31]
[312719314,1706188868429,-500.0,0.0005041,31]
[312719315,1706188868459,-500.0,0.0005041,31]
[312719316,1706188868488,-500.0,0.0005041,31]
[312719317,1706188868519,-664.74,0.0005041,31]
[312719318,1706188868549,-500.0,0.0005041,31]
[312719319,1706188868582,-500.0,0.0005041,31]
[312719320,1706188868613,-552.93,0.0005041,31]
[312719321,1706188868644,-500.0,0.0005041,31]
[312719322,1706188868675,-500.0,0.0005041,31]
[312719323,1706188868707,-569.49,0.0005041,31]
[312719324,1706188868739,-538.01,0.0005041,31]
[312719325,1706188868775,-651.62,0.0005041,31]
[312719326,1706188868805,-567.83,0.0005041,31]
[312719327,1706188868840,-500.0,0.0005041,31]
[312719328,1706188868878,-3543.8,0.0005041,31]
[312719329,1706188868914,-500.0,0.0005041,31]
[312719330,1706188868964,-500.0,0.0005041,31]
[312719331,1706188869000,-500.0,0.0005041,31]
[312719332,1706188869045,-500.0,0.0005041,31]
[312719333,1706188869080,-500.0,0.0005041,31]
[312719334,1706188869111,-500.0,0.0005041,31]
[312719335,1706188869143,-500.0,0.0005041,31]
[312719336,1706188869174,-594.79,0.0005041,31]
[312719337,1706188869216,-500.0,0.0005041,31]
[312719338,1706188869249,-502.34,0.0005041,31]
[312719339,1706188869285,-611.77,0.0005041,31]
[312719340,1706188869323,-549.63,0.0005041,31]
[312719341,1706188869360,-500.0,0.0005041,31]
[312719342,1706188869398,-513.18,0.0005041,31]
[312719343,1706188869439,-591.91,0.0005041,31]
[312719344,1706188869501,-500.0,0.0005041,31]
[312719345,1706188869538,-500.0,0.0005041,31]
[312719346,1706188869587,-892.35,0.0005041,31]
[312719347,1706188869631,-565.29,0.0005041,31]
[312719348,1706188869668,-500.0,0.0005041,31]
[312719349,1706188869702,-500.0,0.0005041,31]
[312719350,1706188869733,-500.0,0.0005041,31]
[312719351,1706188869763,-500.0,0.0005041,31]
[312719352,1706188869825,-500.0,0.0005041,31]
[312719353,1706188869859,-696.05,0.0005041,31]
[312719354,1706188869892,-503.96,0.0005041,31]
[312719355,1706188869922,-500.0,0.0005041,31]
[312719356,1706188869952,-500.0,0.0005041,31]
[312719357,1706188869981,-500.0,0.0005041,31]
[312719358,1706188870010,-500.0,0.0005041,31]
[312719359,1706188870039,-1045.18,0.0005041,31]